Cogmind - Beta 16.1 @@@ ROGUE MODE // 2026.02.07 @ 16:23:40 Player: BlobtheGreat Result: Destroyed by YL-5JW(R) with Subdweller Laser Performance ------------- Evolutions (0) 0 Regions Visited (2) 400 Robots Destroyed (40) 200 Value Destroyed (1315) 1315 Prototype IDs (1) 20 Alien Tech Used (0) 0 Bonus (0) 0 TOTAL SCORE: 1935 Bonus ------- None Cogmind --------- Core Integrity 0/250 Matter 236/300 Energy 169/200 System Corruption 0% Temperature Cool (6) Movement Treading (240) Ox1 Location -10/Subcaves Parts ------- > --- POWER (1) -------- Subdweller Power Source > --- PROPULSION (2) --- Light Treads Light Treads > --- UTILITY (2) ------ High-capacity Storage Unit Medium Armor Plating > --- WEAPON (2) ------- Subdweller Beam Cannon Subdweller Machine Gun > --- INVENTORY (20) --- Subdweller Power Source Subdweller Monowheel Large Storage Unit Medium Armor Plating Scrap Shield Trap Extractor (0/4) Subdweller Laser Powered Cannon Subdweller Machine Gun Grenade Launcher Grenade Launcher Grenade Launcher Mining Laser Makeshift Sword Peak State ------------ > --- POWER ------------ Subdweller Power Source > --- PROPULSION ------- Light Treads Light Treads > --- UTILITY ---------- High-capacity Storage Unit Medium Armor Plating > --- WEAPON ----------- Battle Rifle Subdweller Machine Gun > --- INVENTORY -------- Subdweller Power Source Light Treads Light Treads Subdweller Monowheel Large Storage Unit Medium Armor Plating Scrap Shield Trap Extractor Subdweller Laser Subdweller Beam Cannon Powered Cannon Grenade Launcher Grenade Launcher Grenade Launcher Mining Laser Makeshift Sword [Rating: 15] Favorites ----------- Power Ion Engine Engine Ion Engine Propulsion Light Treads Treads Light Treads Utility High-capacity Storage Unit Device Seismic Detector Storage High-capacity Storage Unit Protection Medium Armor Plating Weapon Light Cannon Energy Cannon Subdweller Beam Cannon Ballistic Gun Light Assault Rifle Ballistic Cannon Light Cannon Launcher Grenade Launcher Impact Weapon Makeshift Hammer Slashing Weapon Makeshift Sword Build | -11 -10 -10 ------- Run | Yrd Mat Sub Slots Evolved . | . . . Power . | . . . Propulsion . | . . . Utility . | . . . Weapon . | . . . Parts Attached 31 | 7 7 17 Power 3 | 1 1 1 Engine 3 | 1 1 1 Core . | . . . Reactor . | . . . Propulsion 7 | 2 . 5 Treads 7 | 2 . 5 Leg . | . . . Wheel . | . . . Hover . | . . . Flight . | . . . Utility 7 | 2 2 3 Device 2 | 1 . 1 Storage 2 | 1 1 . Processor . | . . . Hackware . | . . . Protection 3 | . 1 2 Artifact . | . . . Weapon 14 | 2 4 8 Energy Gun . | . . . Energy Cannon 1 | . . 1 Ballistic Gun 6 | 2 1 3 Ballistic Cannon 2 | . 2 . Launcher 3 | . 1 2 Special Weapon . | . . . Impact Weapon 1 | . . 1 Slashing Weapon 1 | . . 1 Piercing Weapon . | . . . Special Melee Weapon . | . . . Unidentified Prototypes . | . . . Parts Lost 13 | . 1 12 Power 2 | . 1 1 Propulsion 5 | . . 5 Utility 4 | . . 4 Weapon 2 | . . 2 Highest Loss Streak 4 | . 1 4 To Critical Strikes 1 | . . 1 Average Backups 17 | 3 15 18 Power 1 | . 1 1 Propulsion 3 | 1 3 3 Utility 5 | 1 5 5 Weapon 6 | . 5 7 Tool/Special . | . . . Unused Backups 12 | . 2 10 Power 2 | . . 2 Propulsion 3 | . 2 1 Utility 4 | . . 4 Weapon 3 | . . 3 Tool/Special . | . . . Average Slot Usage (%) 99 | . 99 99 Engine 13 | . 13 13 Treads 27 | . 28 27 Device 6 | . 2 8 Storage 14 | . 14 14 Protection 7 | . 11 5 Energy Cannon 1 | . . 1 Ballistic Gun 9 | . 18 4 Ballistic Cannon 14 | . 9 16 Impact Weapon 1 | . . 3 Slashing Weapon 1 | . . 1 Peak Build Rating 15 | 8 10 15 Average Rating 10 | 6 8 11 On Entrance 6 | 1 8 10 Avg Prop Armor Cover (%) . | . . . Naked Turns . | . . . Heaviest Build 64 | 13 58 64 Greatest Support 40 | 40 40 40 Greatest Overweight (x) 2 | . 1 2 Average Overweight (x) . | . . 1 Largest Inventory Capacity 20 | 8 20 20 Average Capacity 19 | 6 19 20 Most Carried 20 | 6 20 20 Average Carried 17 | 3 15 19 Final Capacity 20 | 8 20 20 Final Carried 20 | 6 20 16 Class Distribution -------------------- 100% | Mutant Dominant Class ---------------- Mutant | -10/Materials Mutant | -10/Subcaves Resources | -11 -10 -10 ----------- Run | Yrd Mat Sub Matter Collected 1211 | 278 204 729 Remotely . | . . . Salvage Created 1162 | 106 324 732 Parts 92 | 13 23 56 Haulers Intercepted 1 | . 1 . Recyclers Shooed 1 | . 1 . Parts Field Recycled . | . . . Retrieved Matter . | . . . Parts Self-Destructed 5 | . . 5 Prevented . | . . . Parts Restored . | . . . Kills | -11 -10 -10 ------- Run | Yrd Mat Sub Combat Hostiles Destroyed 34 | . 10 24 Guns 7 | . 3 4 Cannons 15 | . 4 11 AOE 11 | . 3 8 Classes Destroyed 8 | 2 4 2 Builder 1 | . 1 . Tunneler 3 | 3 . . Hauler 1 | . 1 . Recycler 1 | 1 . . Swarmer 3 | . 3 . Grunt 11 | . 7 4 Sentry 1 | . . 1 Subdweller 19 | . . 19 Best Kill Streak 4 | 3 4 4 Combat Bots Only 4 | . 3 4 Max Kills in Single Turn 2 | 2 2 1 Gunslinging . | . . . Exploded 2 | . 2 1 Melee . | . . . Uniques/NPCs Destroyed . | . . . Combat | -11 -10 -10 -------- Run | Yrd Mat Sub Hostile Shots Fired 154 | . 49 105 Missed 46 | . 11 35 Hits 108 | . 38 70 Projectile 108 | . 38 70 AOE 1 | . . 1 Critical Strikes 1 | . . 1 Damage Taken 2060 | . 508 1552 Core 257 | . 57 200 Absorbed by Shields . | . . . Core Remaining (%) 100 | 100 . . Volleys Fired 125 | 7 39 79 Largest 2 | 2 2 2 Hottest 110 | 40 60 110 Shots Fired 204 | 14 74 116 Gun 88 | 14 36 38 Cannon 92 | . 34 58 Launcher 24 | . 4 20 Special . | . . . Kinetic 160 | 14 70 76 Thermal 20 | . . 20 Explosive 24 | . 4 20 Electromagnetic . | . . . Robot Hit Streak 20 | 4 20 16 Robot Miss Streak 3 | 1 3 2 Penetration Max . | . . . Secondary Targets 2 | . 1 1 Max Gunslinging Chain 1 | . 1 1 Shots Hit Robots 144 | 9 49 86 Core Hits 62 | 6 21 35 Critical Kills 1 | . . 1 Critical Parts Destroyed . | . . . Critical Strikes 3 | . 1 2 Meltdown 1 | . . 1 Blast 2 | . 1 1 Melee Attacks 9 | . . 9 Impact 5 | . . 5 Slashing 4 | . . 4 Piercing . | . . . Sneak Attacks . | . . . Combat Hostiles . | . . . Follow-up Attacks . | . . . Damage Inflicted 3295 | 82 764 2449 Guns 886 | 82 228 576 Cannons 1142 | . 349 793 Explosions 1260 | . 180 1080 Melee . | . . . Ramming 7 | . 7 . Kinetic 1609 | 82 577 950 Thermal 419 | . . 419 Explosive 1260 | . 180 1080 Electromagnetic . | . . . Impact . | . . . Slashing . | . . . Piercing . | . . . Highest Corruption . | . . . Average Corruption . | . . . Corruption Purged . | . . . Corruption Blocked . | . . . Overload Shots . | . . . Overflow Damage . | . . . Projectiles . | . . . Explosions . | . . . Melee . | . . . Knockbacks 11 | . 6 5 Impact . | . . . Kinetic 11 | . 6 5 Secondary . | . . . Self-Inflicted Damage 85 | . . 85 Shots 5 | . . 5 Rammed 3 | . 3 . Targets Rammed 3 | . 3 . Kicked . | . . . Crushed . | . . . Highest Temperature 121 | . 121 42 Average Temperature 29 | . 35 14 Received Heat Transfer 552 | . 252 300 Siege Activations . | . . . Martial Activations . | . . . Shielding Activations . | . . . Robots Disrupted . | . . . Combat Hostiles . | . . . Robots Corrupted . | . . . Combat Hostiles . | . . . Parts Fried . | . . . Impact Corruptions . | . . . Robots Melted 1 | . . 1 Combat Hostiles 1 | . . 1 Parts Melted 4 | . . 4 Heat Transferred 555 | . . 555 Parts Sabotaged . | . . . Parts Stolen . | . . . Parts Stripped . | . . . Power Chain Reactions . | . . . Alert | -11 -10 -10 ------- Run | Yrd Mat Sub Maximum Alert Level . | . . . Low Security (%) 100 | 100 100 . Level 1 . | . . . Level 2 . | . . . Level 3 . | . . . Level 4 . | . . . Level 5 . | . . . High Security . | . . . Max Security . | . . . Peak Influence 112 | 15 112 . Initial . | . . . Average 37 | 2 40 . Influence Increases 538 | 20 398 120 Destroy 0b10 Robot/C 300 | . 200 100 Destroy 0b10 Robot/NC 30 | 20 10 . Destroy Leader 82 | . 62 20 Disable Machine 30 | . 30 . Destroy Structure 21 | . 21 . Partial Spotted 15 | . 15 . Lose Combat Pursuer 60 | . 60 . Influence Decreases 538 | 20 355 163 Entered New Map 22 | . . 22 Time Decay 488 | 20 345 123 Lost Part 28 | . 10 18 Squads Dispatched 3 | . 3 . Investigation 1 | . 1 . Extermination . | . . . Reinforcement 2 | . 2 . Assault . | . . . Garrison . | . . . Intercept . | . . . Searches Triggered . | . . . Construction Impeded . | . . . Haulers Reinforced . | . . . Active Scanning Responses . | . . . Cargo Convoy Interrupts . | . . . Stealth | -11 -10 -10 --------- Run | Yrd Mat Sub Distress Signals 2 | . 2 . Communications Jammed . | . . . Distress Signals . | . . . Times Spotted 44 | . 18 26 Peak Tracking Total 3 | . 3 2 Tactical Retreats 3 | . 3 . Traps | -11 -10 -10 ------- Run | Yrd Mat Sub Traps Triggered 1 | . 1 . Indirectly . | . . . Trap Hack Attempts . | . . . Triggered . | . . . Disarmed . | . . . Reprogrammed . | . . . Reused . | . . . Traps Extracted . | . . . Installed . | . . . Triggered . | . . . Machines | -11 -10 -10 ---------- Run | Yrd Mat Sub Machines Disabled 2 | . 2 . Max in Single Turn 1 | . 1 . Machines Repaired . | . . . Machines Dismantled . | . . . Machines Sabotaged . | . . . Overloaded Fab Kills . | . . . Hacking | -11 -10 -10 --------- Run | Yrd Mat Sub Machines Accessed 3 | . 3 . Terminals 2 | . 2 . Fabricators . | . . . Repair Stations 1 | . 1 . Recycling Units . | . . . Scanalyzers . | . . . Garrison Access . | . . . Total Hacks 5 | . 5 . Successful 4 | . 4 . Failed . | . . . Catastrophic . | . . . Database Lockouts 1 | . 1 . Manual 3 | . 3 . Terminals 4 | . 4 . Fabricators . | . . . Repair Stations 1 | . 1 . Recycling Units . | . . . Scanalyzers . | . . . Garrison Access . | . . . Terminal Hacks 3 | . 3 . Robot Analysis 1 | . 1 . Branch Access Points 1 | . 1 . Hauler Manifests 1 | . 1 . Fabricator Hacks . | . . . Repair Station Hacks 1 | . 1 . Refit 1 | . 1 . Recycling Unit Hacks . | . . . Scanalyzer . | . . . Garrison Access Hacks . | . . . Unauthorized Hacks . | . . . Terminals . | . . . Fabricators . | . . . Repair Stations . | . . . Recycling Units . | . . . Scanalyzers . | . . . Garrison Access . | . . . Data Cores Recovered . | . . . Used . | . . . Hacking Detections 1 | . 1 . Full Trace Events . | . . . Feedback Events . | . . . Feedback Blocked . | . . . Robot Schematics Acquired . | . . . Robots Built . | . . . Authchips . | . . . Time . | . . . Total Robot Build Rating . | . . . Part Schematics Acquired . | . . . Parts Built . | . . . Authchips . | . . . Time . | . . . Total Part Build Rating . | . . . Part Studies Acquired . | . . . Parts Repaired . | . . . Time . | . . . Parts Recycled . | . . . Recycled Matter . | . . . Retrieved Matter . | . . . Retrieved Components . | . . . Parts Scanalyzed . | . . . Part Schematics Acquired . | . . . Parts Damaged . | . . . Bothacking | -11 -10 -10 ------------ Run | Yrd Mat Sub Used RIF Installer . | . . . Robots Hacked . | . . . Non-combat . | . . . Combat . | . . . Robot Hacks Applied . | . . . Relay Couplers Released . | . . . Fabnet Peak Effective % . | . . . Robots Rewired . | . . . Allies Hacked . | . . . Hacks Repelled . | . . . Allies | -11 -10 -10 -------- Run | Yrd Mat Sub Total Allies . | . . . Largest Group . | . . . Highest-Rated Group . | . . . Highest-Rated Ally . | . . . Total Orders . | . . . Ally Attacks . | . . . Total Damage . | . . . Kills . | . . . Allies Corrupted . | . . . Allies Melted . | . . . Intel | -11 -10 -10 ------- Run | Yrd Mat Sub Active Infowar (turns) 2279 | 36 255 1988 Seismic 2279 | 36 255 1988 Robot Analysis Total 1 | . 1 . Derelict Logs Recovered 2 | . . 2 Drone Launches . | . . . Drone Recoveries . | . . . Exploration | -11 -10 -10 ------------- Run | Yrd Mat Sub Turns Passed 4886 | 123 1604 3159 Spaces Moved 1764 | 59 508 1197 Core 4 | 4 . . Treads 1760 | 55 508 1197 Legs . | . . . Wheels . | . . . Hover . | . . . Flight . | . . . Fastest Speed 50 | 50 160 240 Average Speed 236 | 152 235 240 Slowest Speed 320 | 160 240 320 Overloaded Moves . | . . . Propulsion Burnouts . | . . . Robots Hopped . | . . . Potential Cave-ins . | . . . Cave-ins Triggered . | . . . Exploration Rate (%) 52 | 3 83 70 Regions Visited 2 Branch Regions 1 Pre-discovered Areas 1 | . . 1 Known Exits Taken . | . . . Unknown Exits Taken 2 | 1 1 . Scrap Searched 13 | . . 13 Spaces Dug 14 | . 12 2 Terrain Destroyed 128 | . 26 102 Melee 2 | . . 2 Projectile 2 | . . 2 AOE 124 | . 26 98 Terrain Rammed . | . . . Walls Destroyed . | . . . Machines Disabled . | . . . Actions | -11 -10 -10 --------- Run | Yrd Mat Sub Total 2274 | 77 842 1355 Wait 285 | . 261 24 Move 1762 | 58 507 1197 Hop . | . . . Pick Up 29 | 5 16 8 Fast Attach 11 | 7 1 3 Attach 14 | . . 14 Detach 4 | . 1 3 Swap 21 | . 9 12 Drop 11 | . 5 6 Fire 125 | 7 39 79 Melee 9 | . . 9 Ram . | . . . Kick . | . . . Crush 3 | . 3 . Escape Stasis . | . . . Rewire . | . . . Trap . | . . . Miscellaneous . | . . . Route ------- -11/Scrapyard -10/Materials (discovered 6 exits: [*Mat x3] / *Min x2 / [*Sub]) -10/Subcaves (discovered 2 exits: [*Mat] / [*Scr]) History --------- Turn | Location | Event 27 | -11/Scrapyard | Discovered new exit (range 16) 124 | -11/Scrapyard | Entered Materials 305 | -10/Materials | Build established: Mutant 636 | -10/Materials | Central database locked down 777 | -10/Materials | Discovered new exit (range 15) 818 | -10/Materials | Identified exit to Mines 871 | -10/Materials | Discovered new exit (range 5) 1114 | -10/Materials | Discovered new exit (range 3) 1447 | -10/Materials | Discovered new exit (range 10) 1698 | -10/Materials | Discovered new exit (range 8) 1728 | -10/Materials | Entered Subcaves 1729 | -10/Subcaves | Approached by a straggling Scientist 2172 | -10/Subcaves | Scientist uncovered a shortcut to Scraptown 2924 | -10/Subcaves | Disturbed a concealed Subdweller 3775 | -10/Subcaves | Ambushed by Subdwellers from Twisted Machinery 3801 | -10/Subcaves | Discovered new exit (range 9) 3926 | -10/Subcaves | Shifting Twisted Machinery released Sub. Laser 3929 | -10/Subcaves | Learned Materials garrison access intel 3967 | -10/Subcaves | Shifting Twisted Machinery released Sub. Beam Cannon 4081 | -10/Subcaves | A Subdweller sparked back to life 4081 | -10/Subcaves | A Subdweller sparked back to life 4160 | -10/Subcaves | Found Prototype Energy Cannon 4303 | -10/Subcaves | Core integrity fell below 50% 4353 | -10/Subcaves | Lost 4 parts (1p1n1u1w) 4375 | -10/Subcaves | Ambushed by Subdweller buried in earth 4483 | -10/Subcaves | Shifting Twisted Machinery released Sub. Laser 4491 | -10/Subcaves | Shifting Twisted Machinery released Sub. Machine Gun 4555 | -10/Subcaves | Core integrity fell below 20% 4887 | -10/Subcaves | Destroyed by YL-5JW(R) with Subdweller Laser Last Messages --------------- 04693_ Searching scrap... 04693_ Found Shrapnel Trap. 04693_ Found 48 Matter. 04695_ Searching scrap... 04695_ Found Flamer. 04695_ Found 49 Matter. 04698_ Searching scrap... 04698_ Found Battle Rifle. 04698_ Found 37 Matter. 04700_ Searching scrap... 04700_ Found Sub. Power Source. 04700_ Found 38 Matter. 04703_ Searching scrap... 04703_ Found Sub. Optics. 04703_ Found Scrap Shield. 04703_ Found 60 Matter. 04868_ Lgt. Treads destroyed. 04877_ DK-E76(R) destroyed. 04877_ Switching to secondary target: YL-5JW(R). 04881_ Battle Rifle destroyed. Map ----- +----------------------------------------------------+ | ???????????????????????????????????????????? ##? | | ???????????????????????????????????????????? #? | | ???????????????????????????????????????????? #? | | ????????????????????????????????????????????# #? | | ???????????????????????????????????????????? #? | | ???????????????????????????????????????????? #? | | ???????????????????????????????????????????## #?? | | ?????????????????????????????????????####### ##? | | ?????????????????????????????????????#=%## #? | | ?????????????????????????????????????#=!"## ##? | | ?????????????????????????????????????##&&&* ##?? | | ?????????????????????#???????????????#!&#[#" #??? | | ?????????????????? ???????????????#= ### ##?? | | ???????????????? ??????????????####?# #?? | | ???????????????? ???????#########???## #### | | ????????????????? ???????#"""""""###### ## | | ?????????????????? #?????## "## # | | ??????????????????# #???##"& ## # | | ??????????????????# ##?#" # ## | | ??????????????????# ###" "##& ## | | | ??????????????????? ##" ! [ " =!### | | ???????????????????? ##" %% " &%*"##"""" | | ????????????????????? R ## % %!# & & "# """" | | ??????????????????????#%[ ##" &%%%!# !& " """" | | ??????????????????????#=[ # |[ * ## "" " """"# | | ??????????????????????# @##" " " # | | ???????????????????##### ###" " "" " " | | ??????????????????## #### ##" "" ""## " "" | | ???????????????#### ### ### &"&### " # "" | | ??????????????## ##?###"" ""### ""# | | ??????????????# #????######??### "## | | ??????????????## ##??????????### ""## | | ???????????????## ####????????# "" # | | ??????????????### #???????## """"# | | ??????????????# ##???#### """"" | | ??????????????### #?### # """""" | | ????????????????## #### ####""" | | ?????????????????# #####?# ##??? ? | | ?????????????????# ######## ## #??????? | | ?????????????????# # # ### ##### #?????? | | ?????????????????# #??# ##?????? | | ?????????????????# #### # ## # ##?? #??????? | | ?????????????????###??############??? #?????? | | ????????????????????????????????????#### #?????? | | ???????????????????????????????????????# #?????? | | ???????????????????????????????????????#####?????? | | ?????????????????????????????????????????????????? | | ?????????????????????????????????????????????????? | | ?????????????????????????????????????????????????? | | ?????????????????????????????????????????????????? | +----------------------------------------------------+ Best States ------------- Heat Dissipation 25 Energy Generation 15 Energy Capacity 250 Matter Stores 300 Matter Capacity 300 Sight Range 16 Terrain Scan Density 10 Armor Coverage 225 Evasion (%) 40 Recoil Reduction 2 Item Schematics ----------------- None Robot Schematics ------------------ None Fabricated ------------ Nothing Repaired ---------- Nothing Studied --------- None Alien Tech Used ----------------- None Achievements -------------- None Challenges ------------ None Game ------ Seed HybridElectrostormLoader Manual? 0 Play Time 00:20:28 Cumulative 265.1 hours Start 2026.02.07 @ 16:10:57 End 2026.02.07 @ 16:23:40 Sessions 1 Manual Loads 0 Difficulty Rogue Special Mode None Game No. 267 Rogue 267 Adventurer 0 Explorer 0 Win Type - Total 13 Types 9/1/2/0/0/0/0/0/0/1 Lore% 88 Gallery% 80 Achievement% 63 Wizard Run 0 Options --------- Layout 1 ASCII 0 Keyboard 1 Movement Arrows Keybinds 0 Fullscreen 1 Font 24/Smallcaps Map View 50x40 Zoom Use 0% Tactical HUD 1 Map Filters NONE Filters NONE Steam 1 RUN: 37455ed8-c779-48fb-9cd3-22014c117fe1